fUSD/lending_fUSD_20250629
["ID","MTS","AMOUNT","RATE_DAILY","PERIOD"]
[368557281,1751206259880,-490.0,0.00024657,2]
[368557282,1751206259890,-490.0,0.00024657,2]
[368557283,1751206259899,-490.0,0.00024657,2]
[368557284,1751206259908,-490.0,0.00024657,2]
[368557285,1751206259917,-490.0,0.00024657,2]
[368557286,1751206259926,-200.0,0.00024657,7]
[368557287,1751206259936,-299.1996,0.00024657,7]
[368557288,1751206259945,-604.30718522,0.00024657,2]
[368557289,1751206259954,-490.0,0.00024657,2]
[368557290,1751206259963,-500.0,0.00024657,2]
[368557291,1751206259973,-505.55895388,0.00024657,2]
[368557292,1751206259982,-490.0,0.00024657,2]
[368557293,1751206259991,-151.0,0.00024657,7]
[368557294,1751206260001,-298.110293,0.00024657,7]
[368557295,1751206260010,-490.0,0.00024657,2]
[368557296,1751206260019,-490.0,0.00024657,2]
[368557297,1751206260030,-484.36518451,0.00024657,2]
[368557298,1751206260039,-490.0,0.00024657,2]
[368557299,1751206260048,-490.0,0.00024657,2]
[368557300,1751206260057,-707.27,0.00024657,2]
[368557301,1751206260067,-490.0,0.00024657,2]
[368557302,1751206260076,-490.0,0.00024657,2]
[368557303,1751206260085,-490.0,0.00024657,2]
[368557304,1751206260094,-336.49364716,0.00024657,2]
[368557305,1751206260103,-493.32490657,0.00024657,2]
[368557306,1751206260112,-490.0,0.00024657,2]
[368557307,1751206260122,-490.0,0.00024657,2]
[368557308,1751206260131,-490.0,0.00024657,2]
[368557309,1751206260142,-490.0,0.00024657,2]
[368557310,1751206260151,-490.0,0.00024657,2]
[368557311,1751206260160,-702.72,0.00024657,2]
[368557312,1751206260169,-1150.43,0.00024657,2]
[368557313,1751206260179,-498.25,0.00024657,2]
[368557314,1751206260188,-377.73420351,0.00024657,2]
[368557315,1751206260197,-490.0,0.00024657,2]
[368557316,1751206260207,-500.0,0.00024657,2]
[368557317,1751206260216,-500.0,0.00024657,2]
[368557318,1751206260225,-490.0,0.00024657,2]
[368557319,1751206260235,-490.0,0.00024657,2]
[368557320,1751206260244,-490.0,0.00024657,2]
[368557321,1751206260254,-490.0,0.00024657,2]
[368557322,1751206260264,-490.0,0.00024657,2]
[368557323,1751206260273,-490.0,0.00024657,2]
[368557324,1751206260283,-490.0,0.00024657,2]
[368557325,1751206260292,-1000.0,0.00024657,2]
[368557326,1751206260304,-490.0,0.00024657,2]
[368557327,1751206260313,-490.0,0.00024657,2]
[368557328,1751206260323,-490.0,0.00024657,2]
[368557329,1751206260332,-490.0,0.00024657,2]
[368557330,1751206260342,-490.0,0.00024657,2]
[368557331,1751206260352,-490.0,0.00024657,2]
[368557332,1751206260362,-955.39,0.00024657,2]
[368557333,1751206260372,-490.0,0.00024657,2]
[368557334,1751206260382,-490.0,0.00024657,2]
[368557335,1751206260392,-995.94,0.00024657,2]
[368557336,1751206260401,-490.0,0.00024657,2]
[368557337,1751206260410,-490.0,0.00024657,2]
[368557338,1751206260419,-500.0,0.00024657,2]
[368557339,1751206260429,-500.0,0.00024657,2]
[368557340,1751206260438,-500.0,0.00024657,2]
[368557341,1751206260447,-500.0,0.00024657,2]
[368557342,1751206260456,-496.35,0.00024657,2]
[368557343,1751206260465,-490.0,0.00024657,2]
[368557344,1751206260474,-494.70838766,0.00024657,2]
[368557345,1751206260484,-490.0,0.00024657,2]
[368557346,1751206260494,-490.0,0.00024657,2]
[368557347,1751206260503,-490.0,0.00024657,2]
[368557348,1751206260513,-490.0,0.00024657,2]
[368557349,1751206260523,-490.0,0.00024657,2]
[368557350,1751206260532,-490.0,0.00024657,2]
[368557351,1751206260541,-500.0,0.00024657,2]
[368557352,1751206260551,-490.0,0.00024657,2]
[368557353,1751206260560,-520.0,0.00024657,2]
[368557354,1751206260569,-587.43,0.00024657,2]
[368557355,1751206260579,-490.0,0.00024657,2]
[368557356,1751206260588,-490.0,0.00024657,2]
[368557357,1751206260597,-634.96,0.00024657,2]
[368557358,1751206260607,-575.11,0.00024657,2]
[368557359,1751206260616,-1124.57,0.00024657,2]
[368557360,1751206260626,-490.0,0.00024657,2]
[368557361,1751206260635,-490.0,0.00024657,2]
[368557362,1751206260644,-490.0,0.00024657,2]
[368557363,1751206260654,-490.0,0.00024657,2]
[368557364,1751206260663,-490.0,0.00024657,2]
[368557365,1751206260673,-490.0,0.00024657,2]
[368557366,1751206260683,-156.077597,0.00024657,2]
[368557367,1751206260692,-490.0,0.00024657,2]
[368557368,1751206260702,-490.0,0.00024657,2]
[368557369,1751206260712,-490.0,0.00024657,2]
[368557370,1751206260722,-490.0,0.00024657,2]
[368557371,1751206260731,-490.0,0.00024657,2]
[368557372,1751206260740,-490.0,0.00024657,2]
[368557373,1751206260749,-490.0,0.00024657,2]
[368557374,1751206260759,-490.0,0.00024657,2]
[368557375,1751206260769,-490.0,0.00024657,2]
[368557376,1751206260778,-491.29858789,0.00024657,2]
[368557377,1751206260787,-452.95,0.00024657,2]
[368557378,1751206260796,-490.0,0.00024657,2]
[368557379,1751206260806,-732.4,0.00024657,2]
[368557380,1751206260815,-490.0,0.00024657,2]
[368557381,1751206260824,-490.0,0.00024657,2]
[368557382,1751206260833,-490.0,0.00024657,2]
[368557383,1751206260842,-611.47,0.00024657,2]
[368557384,1751206260851,-797.24,0.00024657,2]
[368557385,1751206260861,-490.0,0.00024657,2]
[368557386,1751206260870,-490.0,0.00024657,2]
[368557387,1751206260880,-490.0,0.00024657,2]
[368557388,1751206260889,-1766.99,0.00024657,2]
[368557389,1751206260900,-490.0,0.00024657,2]
[368557390,1751206260909,-490.48,0.00024657,2]
[368557391,1751206260918,-490.0,0.00024657,2]
[368557392,1751206260927,-490.0,0.00024657,2]
[368557393,1751206260936,-620.59,0.00024657,2]
[368557394,1751206260946,-490.0,0.00024657,2]
[368557395,1751206260955,-490.0,0.00024657,2]
[368557396,1751206260964,-534.85,0.00024657,2]
[368557397,1751206260973,-490.0,0.00024657,2]
[368557398,1751206260982,-490.0,0.00024657,2]
[368557399,1751206260991,-490.0,0.00024657,2]
[368557400,1751206261000,-550.27,0.00024657,2]
[368557401,1751206261009,-490.0,0.00024657,2]
[368557402,1751206261018,-490.0,0.00024657,2]
[368557403,1751206261027,-490.0,0.00024657,2]
[368557404,1751206261037,-490.0,0.00024657,2]
[368557405,1751206261046,-490.0,0.00024657,2]
[368557406,1751206261055,-1108.02,0.00024657,2]
[368557407,1751206261065,-490.0,0.00024657,2]
[368557408,1751206261074,-490.0,0.00024657,2]
[368557409,1751206261083,-490.0,0.00024657,2]
[368557410,1751206261093,-490.0,0.00024657,2]
[368557411,1751206261102,-490.0,0.00024657,2]
[368557412,1751206261111,-490.0,0.00024657,2]
[368557413,1751206261120,-1008.72,0.00024657,2]
[368557414,1751206261130,-490.0,0.00024657,2]
[368557415,1751206261139,-1103.27,0.00024657,2]
[368557416,1751206261148,-490.0,0.00024657,2]
[368557417,1751206261158,-490.0,0.00024657,2]
[368557418,1751206261167,-490.0,0.00024657,2]
[368557419,1751206261176,-490.0,0.00024657,2]
[368557420,1751206261185,-490.0,0.00024657,2]
[368557421,1751206261194,-490.0,0.00024657,2]
[368557422,1751206261204,-490.0,0.00024657,2]
[368557423,1751206261213,-490.0,0.00024657,2]
[368557424,1751206261222,-151.0,0.00024657,2]
[368557425,1751206261232,-490.0,0.00024657,2]
[368557426,1751206261241,-490.0,0.00024657,2]
[368557427,1751206261250,-490.0,0.00024657,2]
[368557428,1751206261260,-490.0,0.00024657,2]
[368557429,1751206261269,-575.41,0.00024657,2]
[368557430,1751206261278,-490.0,0.00024657,2]
[368557431,1751206261287,-664.24,0.00024657,2]
[368557432,1751206261296,-490.0,0.00024657,2]
[368557433,1751206261309,-490.0,0.00024657,2]
[368557434,1751206261320,-490.0,0.00024657,2]
[368557435,1751206261329,-1176.1,0.00024657,2]
[368557436,1751206261338,-527.99,0.00024657,2]
[368557437,1751206261348,-490.0,0.00024657,2]
[368557438,1751206261358,-490.0,0.00024657,2]
[368557439,1751206261367,-490.0,0.00024657,2]
[368557440,1751206261377,-799.96,0.00024657,2]
[368557441,1751206261387,-490.0,0.00024657,2]
[368557442,1751206261396,-490.0,0.00024657,2]
[368557443,1751206261405,-490.0,0.00024657,2]
[368557444,1751206261417,-151.0,0.00024657,7]
[368557445,1751206261426,-490.0,0.00024657,2]
[368557446,1751206261435,-151.0,0.00024657,7]
[368557447,1751206261445,-490.0,0.00024657,2]
[368557448,1751206261454,-490.0,0.00024657,2]
[368557449,1751206261463,-752.28,0.00024657,2]
[368557450,1751206261472,-490.0,0.00024657,2]
[368557451,1751206261481,-756.56,0.00024657,2]
[368557452,1751206261491,-490.0,0.00024657,2]
[368557453,1751206261500,-490.0,0.00024657,2]
[368557454,1751206261511,-490.0,0.00024657,2]
[368557455,1751206261521,-490.0,0.00024657,2]
[368557456,1751206261531,-490.0,0.00024657,2]
[368557457,1751206261540,-770.05,0.00024657,2]
[368557458,1751206261550,-490.0,0.00024657,2]
[368557459,1751206261559,-607.89324229,0.00024657,2]
[368557460,1751206261569,-490.0,0.00024657,2]
[368557461,1751206261579,-151.0,0.00024657,7]
[368557462,1751206261588,-151.0,0.00024657,7]
[368557463,1751206261597,-495.80659735,0.00024657,2]
[368557464,1751206261606,-490.0,0.00024657,2]
[368557465,1751206261615,-490.0,0.00024657,2]
[368557466,1751206261624,-151.0,0.00024657,7]
[368557467,1751206261634,-151.0,0.00024657,7]
[368557468,1751206261644,-490.0,0.00024657,2]
[368557469,1751206261653,-490.0,0.00024657,2]
[368557470,1751206261662,-490.0,0.00024657,2]
[368557471,1751206261672,-490.0,0.00024657,2]
[368557472,1751206261682,-738.59,0.00024657,2]
[368557473,1751206261692,-490.0,0.00024657,2]
[368557474,1751206261702,-653.66,0.00024657,2]
[368557475,1751206261712,-490.0,0.00024657,2]
[368557476,1751206261721,-490.0,0.00024657,2]
[368557477,1751206261730,-490.0,0.00024657,2]
[368557478,1751206261740,-490.0,0.00024657,2]
[368557479,1751206261749,-490.0,0.00024657,2]
[368557480,1751206261759,-502.69,0.00024657,2]
[368557481,1751206261769,-522.94,0.00024657,2]
[368557482,1751206261778,-2040.75,0.00024657,2]
[368557483,1751206261787,-490.0,0.00024657,2]
[368557484,1751206261797,-490.0,0.00024657,2]
[368557485,1751206261806,-490.0,0.00024657,2]
[368557486,1751206261816,-716.83,0.00024657,2]
[368557487,1751206261826,-490.0,0.00024657,2]
[368557488,1751206261835,-1056.15,0.00024657,2]
[368557489,1751206261845,-1500.0,0.00024657,2]
[368557490,1751206261854,-490.0,0.00024657,2]
[368557491,1751206261864,-1017.75,0.00024657,2]
[368557492,1751206261874,-794.4,0.00024657,2]
[368557493,1751206261884,-490.0,0.00024657,2]
[368557494,1751206261893,-490.0,0.00024657,2]
[368557495,1751206261902,-490.0,0.00024657,2]
[368557496,1751206261911,-490.0,0.00024657,2]
[368557497,1751206261921,-490.0,0.00024657,2]
[368557498,1751206261930,-490.0,0.00024657,2]
[368557499,1751206261940,-847.49,0.00024657,2]
[368557500,1751206261949,-371.07331579,0.00024657,2]
[368557501,1751206261959,-490.0,0.00024657,2]
[368557502,1751206261969,-557.43,0.00024657,2]
[368557503,1751206261978,-490.0,0.00024657,2]
[368557504,1751206261987,-490.0,0.00024657,2]
[368557505,1751206261996,-490.0,0.00024657,2]
[368557506,1751206262006,-490.0,0.00024657,2]
[368557507,1751206262016,-800.71,0.00024657,2]
[368557508,1751206262026,-490.0,0.00024657,2]
[368557509,1751206262036,-636.46368965,0.00024657,2]
[368557510,1751206262045,-1613.06,0.00024657,2]
[368557511,1751206262055,-673.15,0.00024657,2]
[368557512,1751206262064,-490.0,0.00024657,2]
[368557513,1751206262073,-490.0,0.00024657,2]
[368557514,1751206262082,-490.0,0.00024657,2]
[368557515,1751206262093,-490.0,0.00024657,2]
[368557516,1751206262104,-490.0,0.00024657,2]
[368557517,1751206262114,-490.0,0.00024657,2]
[368557518,1751206262125,-490.0,0.00024657,2]
[368557519,1751206262136,-490.0,0.00024657,2]
[368557520,1751206262147,-490.0,0.00024657,2]
[368557521,1751206262158,-490.0,0.00024657,2]
[368557522,1751206262168,-1085.43,0.00024657,2]
[368557523,1751206262179,-591.74813656,0.00024657,2]
[368557524,1751206262190,-652.17,0.00024657,2]
[368557525,1751206262200,-1402.06,0.00024657,2]
[368557526,1751206262210,-490.0,0.00024657,2]
[368557527,1751206262220,-2412.29,0.00024657,2]
[368557528,1751206262229,-2098.59,0.00024657,2]
[368557529,1751206262239,-490.0,0.00024657,2]
[368557530,1751206262250,-490.0,0.00024657,2]
[368557531,1751206262260,-490.0,0.00024657,2]
[368557532,1751206262270,-490.0,0.00024657,2]
[368557533,1751206262280,-490.0,0.00024657,2]
[368557534,1751206262291,-1863.11,0.00024657,2]
[368557535,1751206262302,-490.0,0.00024657,2]
[368557536,1751206262314,-490.0,0.00024657,2]
[368557537,1751206262324,-490.0,0.00024657,2]
[368557538,1751206262335,-490.0,0.00024657,2]
[368557539,1751206262346,-490.0,0.00024657,2]
[368557540,1751206262356,-490.0,0.00024657,2]
[368557541,1751206262367,-1857.3,0.00024657,2]
[368557542,1751206262377,-490.0,0.00024657,2]
[368557543,1751206262389,-1171.26,0.00024657,2]
[368557544,1751206262399,-490.0,0.00024657,2]
[368557545,1751206262408,-490.0,0.00024657,2]
[368557546,1751206262418,-496.66,0.00024657,2]
[368557547,1751206262428,-151.0,0.00024657,7]
[368557548,1751206262438,-490.0,0.00024657,2]
[368557549,1751206262449,-490.0,0.00024657,2]
[368557550,1751206262459,-151.0,0.00024657,7]
[368557551,1751206262470,-490.0,0.00024657,2]
[368557552,1751206262481,-490.0,0.00024657,2]
[368557553,1751206262491,-512.96396481,0.00024657,2]
[368557554,1751206262502,-151.0,0.00024657,7]
[368557555,1751206262512,-151.0,0.00024657,7]
[368557556,1751206262523,-490.0,0.00024657,2]
[368557557,1751206262533,-585.52,0.00024657,2]
[368557558,1751206262544,-490.0,0.00024657,2]
[368557559,1751206262555,-598.78,0.00024657,2]
[368557560,1751206262566,-490.0,0.00024657,2]
[368557561,1751206262578,-974.99,0.00024657,2]
[368557562,1751206262588,-1061.98,0.00024657,2]
[368557563,1751206262598,-2843.69,0.00024657,2]
[368557564,1751206262608,-548.88,0.00024657,2]
[368557565,1751206262619,-577.75,0.00024657,2]
[368557566,1751206262629,-490.0,0.00024657,2]
[368557567,1751206262641,-490.0,0.00024657,2]
[368557568,1751206262651,-490.0,0.00024657,2]
[368557569,1751206262661,-541.94,0.00024657,2]
[368557570,1751206262671,-495.41059378,0.00024657,2]
[368557571,1751206262682,-490.0,0.00024657,2]
[368557572,1751206262691,-500.0,0.00024657,2]
[368557573,1751206262701,-170.58697528,0.00024657,2]
[368557574,1751206262712,-1918.87,0.00024657,2]
[368557575,1751206262721,-526.51,0.00024657,2]
[368557576,1751206262731,-793.19,0.00024657,2]
[368557577,1751206262742,-1437.11,0.00024657,2]
[368557578,1751206262752,-652.29,0.00024657,2]
[368557579,1751206262763,-505.18,0.00024657,2]
[368557580,1751206262774,-490.0,0.00024657,2]
[368557581,1751206262783,-2371.51,0.00024657,2]
[368557582,1751206262794,-490.0,0.00024657,2]
[368557583,1751206262803,-631.06788628,0.00024657,2]
[368557584,1751206262813,-490.0,0.00024657,2]
[368557585,1751206262823,-1067.26,0.00024657,2]
[368557586,1751206262833,-490.0,0.00024657,2]
[368557587,1751206262843,-490.0,0.00024657,2]
[368557588,1751206262853,-490.0,0.00024657,2]
[368557589,1751206262862,-490.0,0.00024657,2]
[368557590,1751206262872,-681.69,0.00024657,2]
[368557591,1751206262883,-1282.5,0.00024657,2]
[368557592,1751206262892,-490.0,0.00024657,2]
[368557593,1751206262902,-490.0,0.00024657,2]
[368557594,1751206262912,-1458.01,0.00024657,2]
[368557595,1751206262922,-490.0,0.00024657,2]
[368557596,1751206262932,-490.0,0.00024657,2]
[368557597,1751206262942,-716.57,0.00024657,2]
[368557598,1751206262952,-490.0,0.00024657,2]
[368557599,1751206262962,-490.0,0.00024657,2]
[368557600,1751206262972,-490.0,0.00024657,2]
[368557601,1751206262982,-490.0,0.00024657,2]
[368557602,1751206262992,-490.0,0.00024657,2]
[368557603,1751206263002,-490.0,0.00024657,2]
[368557604,1751206263012,-490.0,0.00024657,2]
[368557605,1751206263023,-864.6,0.00024657,2]
[368557606,1751206263033,-2133.7,0.00024657,2]
[368557607,1751206263044,-490.0,0.00024657,2]
[368557608,1751206263055,-863.31,0.00024657,2]
[368557609,1751206263065,-490.0,0.00024657,2]
[368557610,1751206263077,-490.0,0.00024657,2]
[368557611,1751206263087,-490.0,0.00024657,2]
[368557612,1751206263097,-493.52187174,0.00024657,2]
[368557613,1751206263107,-561.21,0.00024657,2]
[368557614,1751206263117,-490.0,0.00024657,2]
[368557615,1751206263128,-2064.02,0.00024657,2]
[368557616,1751206263138,-624.46,0.00024657,2]
[368557617,1751206263148,-776.84,0.00024657,2]
[368557618,1751206263159,-490.0,0.00024657,2]
[368557619,1751206263169,-811.46,0.00024657,2]
[368557620,1751206263179,-1706.17,0.00024657,2]
[368557621,1751206263190,-784.95,0.00024657,2]
[368557622,1751206263200,-490.0,0.00024657,2]
[368557623,1751206263209,-490.0,0.00024657,2]
[368557624,1751206263220,-490.0,0.00024657,2]
[368557625,1751206263230,-3666.67,0.00024657,2]
[368557626,1751206263240,-490.0,0.00024657,2]
[368557627,1751206263249,-337.47742024,0.00024657,2]
[368557628,1751206263259,-490.0,0.00024657,2]
[368557629,1751206263270,-681.36,0.00024657,2]
[368557630,1751206263280,-490.0,0.00024657,2]
[368557631,1751206263290,-490.0,0.00024657,2]
[368557632,1751206263302,-490.0,0.00024657,2]
[368557633,1751206263315,-340.25774732,0.00024657,2]
[368557634,1751206263325,-659.61,0.00024657,2]
[368557635,1751206263335,-490.0,0.00024657,2]
[368557636,1751206263348,-490.0,0.00024657,2]
[368557637,1751206263358,-490.0,0.00024657,2]
[368557638,1751206263368,-220.91892519,0.00024657,2]
[368557639,1751206263380,-841.39,0.00024657,2]
[368557640,1751206263391,-490.0,0.00024657,2]
[368557641,1751206263401,-490.0,0.00024657,2]
[368557642,1751206263411,-978.49,0.00024657,2]
[368557643,1751206263421,-490.0,0.00024657,2]
[368557644,1751206263431,-490.0,0.00024657,2]
[368557645,1751206263441,-490.0,0.00024657,2]
[368557646,1751206263452,-840.94,0.00024657,2]
[368557647,1751206263463,-490.0,0.00024657,2]
[368557648,1751206263473,-490.0,0.00024657,2]
[368557649,1751206263484,-774.53,0.00024657,2]
[368557650,1751206263495,-699.55,0.00024657,2]
[368557651,1751206263505,-619.96510919,0.00024657,2]
[368557652,1751206263517,-517.16,0.00024657,2]
[368557653,1751206263528,-490.0,0.00024657,2]
[368557654,1751206263539,-1167.53,0.00024657,2]
[368557655,1751206263550,-490.0,0.00024657,2]
[368557656,1751206263561,-336.38064358,0.00024657,2]
[368557657,1751206263571,-490.0,0.00024657,2]
[368557658,1751206263581,-490.0,0.00024657,2]
[368557659,1751206263591,-1367.59,0.00024657,2]
[368557660,1751206263602,-984.57,0.00024657,2]
[368557661,1751206263612,-490.0,0.00024657,2]
[368557662,1751206263622,-490.0,0.00024657,2]
[368557663,1751206263632,-1628.21,0.00024657,2]
[368557664,1751206263642,-492.59786832,0.00024657,2]
[368557665,1751206263652,-670.36,0.00024657,2]
[368557666,1751206263663,-490.0,0.00024657,2]
[368557667,1751206263674,-1817.56,0.00024657,2]
[368557668,1751206263685,-778.46,0.00024657,2]
[368557669,1751206263696,-493.92598629,0.00024657,2]
[368557670,1751206263707,-490.0,0.00024657,2]
[368557671,1751206263719,-490.0,0.00024657,2]
[368557672,1751206263731,-490.0,0.00024657,2]
[368557673,1751206263742,-490.0,0.00024657,2]
[368557674,1751206263751,-490.0,0.00024657,2]
[368557675,1751206263762,-490.0,0.00024657,2]
[368557676,1751206263771,-490.0,0.00024657,2]
[368557677,1751206263781,-490.0,0.00024657,2]
[368557678,1751206263791,-1019.98,0.00024657,2]
[368557679,1751206263801,-490.0,0.00024657,2]
[368557680,1751206263812,-996.48,0.00024657,2]
[368557681,1751206263822,-490.0,0.00024657,2]
[368557682,1751206263831,-777.37,0.00024657,2]
[368557683,1751206263842,-2292.52,0.00024657,2]
[368557684,1751206263851,-663.82,0.00024657,2]
[368557685,1751206263861,-490.0,0.00024657,2]
[368557686,1751206263872,-490.0,0.00024657,2]
[368557687,1751206263883,-490.0,0.00024657,2]
[368557688,1751206263893,-490.0,0.00024657,2]
[368557689,1751206263903,-490.0,0.00024657,2]
[368557690,1751206263914,-685.16,0.00024657,2]
[368557691,1751206263924,-1295.88,0.00024657,2]
[368557692,1751206263934,-517.84,0.00024657,2]
[368557693,1751206263945,-575.59,0.00024657,2]
[368557694,1751206263956,-860.35,0.00024657,2]
[368557695,1751206263966,-490.0,0.00024657,2]
[368557696,1751206263976,-2198.19,0.00024657,2]
[368557697,1751206263987,-2164.34,0.00024657,2]
[368557698,1751206263997,-2174.13,0.00024657,2]
[368557699,1751206264007,-490.0,0.00024657,2]
[368557700,1751206264026,-215.28432304,0.00024657,2]
[368557701,1751206264036,-490.0,0.00024657,2]
[368557702,1751206264050,-490.0,0.00024657,2]
[368557703,1751206264059,-490.0,0.00024657,2]
[368557704,1751206264069,-2127.27,0.00024657,2]
[368557705,1751206264078,-490.0,0.00024657,2]
[368557706,1751206264088,-490.0,0.00024657,2]
[368557707,1751206264097,-1767.85,0.00024657,2]
[368557708,1751206264107,-2858.31,0.00024657,2]
[368557709,1751206264116,-490.0,0.00024657,2]
[368557710,1751206264126,-490.0,0.00024657,2]
[368557711,1751206264137,-490.0,0.00024657,2]
[368557712,1751206264147,-490.0,0.00024657,2]
[368557713,1751206264157,-595.12,0.00024657,2]
[368557714,1751206264168,-490.0,0.00024657,2]
[368557715,1751206264178,-1180.31,0.00024657,2]
[368557716,1751206264189,-490.0,0.00024657,2]
[368557717,1751206264199,-3042.15,0.00024657,2]
[368557718,1751206264210,-490.0,0.00024657,2]
[368557719,1751206264221,-1951.76,0.00024657,2]
[368557720,1751206264232,-609.41,0.00024657,2]
[368557721,1751206264243,-490.0,0.00024657,2]
[368557722,1751206264253,-1110.91,0.00024657,2]
[368557723,1751206264264,-490.0,0.00024657,2]
[368557724,1751206264274,-490.0,0.00024657,2]
[368557725,1751206264285,-1134.55,0.00024657,2]
[368557726,1751206264839,-490.0,0.00024657,2]
[368557727,1751206264866,-490.0,0.00024657,2]
[368557728,1751206264879,-497.03,0.00024657,2]
[368557729,1751206264890,-490.0,0.00024657,2]
[368557730,1751206264900,-490.0,0.00024657,2]
[368557731,1751206264910,-490.0,0.00024657,2]
[368557732,1751206264920,-490.0,0.00024657,2]
[368557733,1751206264930,-2094.89,0.00024657,2]
[368557734,1751206264940,-490.0,0.00024657,2]
[368557735,1751206264950,-490.0,0.00024657,2]
[368557736,1751206264960,-938.04,0.00024657,2]
[368557737,1751206264970,-490.0,0.00024657,2]
[368557738,1751206264980,-490.0,0.00024657,2]
[368557739,1751206264989,-490.0,0.00024657,2]
[368557740,1751206264999,-812.64,0.00024657,2]
[368557741,1751206265010,-490.0,0.00024657,2]
[368557742,1751206265020,-490.0,0.00024657,2]
[368557743,1751206265030,-882.97,0.00024657,2]
[368557744,1751206265040,-490.0,0.00024657,2]
[368557745,1751206265050,-1165.45,0.00024657,2]
[368557746,1751206265060,-490.0,0.00024657,2]
[368557747,1751206265070,-1000.3,0.00024657,2]
[368557748,1751206265080,-1027.58,0.00024657,2]
[368557749,1751206265090,-600.04,0.00024657,2]
[368557750,1751206265100,-490.0,0.00024657,2]
[368557751,1751206265110,-490.0,0.00024657,2]
[368557752,1751206265119,-490.0,0.00024657,2]
[368557753,1751206265129,-490.0,0.00024657,2]
[368557754,1751206265141,-490.0,0.00024657,2]
[368557755,1751206265151,-890.98,0.00024657,2]
[368557756,1751206265161,-490.0,0.00024657,2]
[368557757,1751206265171,-490.0,0.00024657,2]
[368557758,1751206265180,-995.94,0.00024657,2]
[368557759,1751206265190,-490.0,0.00024657,2]
[368557760,1751206265199,-490.0,0.00024657,2]
[368557761,1751206265209,-2535.53,0.00024657,2]
[368557762,1751206265218,-490.0,0.00024657,2]
[368557763,1751206265227,-490.0,0.00024657,2]
[368557764,1751206265237,-1343.67,0.00024657,2]
[368557765,1751206265247,-2338.68,0.00024657,2]
[368557766,1751206265256,-1942.89,0.00024657,2]
[368557767,1751206265266,-519.74,0.00024657,2]
[368557768,1751206265275,-1829.51,0.00024657,2]
[368557769,1751206265285,-523.09,0.00024657,2]
[368557770,1751206265294,-490.0,0.00024657,2]
[368557771,1751206265308,-548.48,0.00024657,2]
[368557772,1751206265318,-490.0,0.00024657,2]
[368557773,1751206265327,-2752.71,0.00024657,2]
[368557774,1751206265337,-490.0,0.00024657,2]
[368557775,1751206265346,-605.31,0.00024657,2]
[368557776,1751206265356,-490.0,0.00024657,2]
[368557777,1751206265366,-490.0,0.00024657,2]
[368557778,1751206265376,-2782.17,0.00024657,2]
[368557779,1751206265387,-490.0,0.00024657,2]
[368557780,1751206265397,-490.0,0.00024657,2]